fUST/lending_fUST_20240415
["ID","MTS","AMOUNT","RATE_DAILY","PERIOD"]
[322639890,1713153039281,-501.06899842,0.00038356,7]
[322639891,1713153039290,-500.90292457,0.00038356,7]
[322639892,1713153039299,-500.0,0.00038356,7]
[322639893,1713153039308,-500.0,0.00038356,7]
[322639894,1713153039317,-500.0,0.00038356,7]
[322639895,1713153039326,-500.0,0.00038356,7]
[322639896,1713153039335,-500.0,0.00038356,7]
[322639897,1713153039344,-500.0,0.00038356,7]
[322639898,1713153039353,-500.0,0.00038356,7]
[322639899,1713153039362,-511.80119331,0.00038356,7]
[322639900,1713153039373,-500.0,0.00038356,7]
[322639901,1713153039382,-500.0,0.00038356,7]
[322639902,1713153039391,-502.60971306,0.00038356,7]
[322639903,1713153039400,-505.42529058,0.00038356,7]
[322639904,1713153039410,-686.11,0.00038356,7]
[322639905,1713153039419,-500.6998944,0.00038356,2]
[322639906,1713153039428,-500.68032662,0.00038356,7]
[322639907,1713153039437,-500.0,0.00038356,7]
[322639908,1713153039446,-500.0,0.00038356,7]
[322639909,1713153039455,-500.0,0.00038356,7]
[322639910,1713153039464,-500.0,0.00038356,7]
[322639911,1713153039474,-500.0,0.00038356,7]
[322639912,1713153039483,-500.0,0.00038356,7]
[322639913,1713153039495,-500.0,0.00038356,7]
[322639914,1713153039504,-501.88530257,0.00038356,7]
[322639915,1713153039513,-500.0,0.00038356,7]
[322639916,1713153039522,-500.0,0.00038356,7]
[322639917,1713153039532,-645.72,0.00038356,7]
[322639918,1713153039541,-500.0,0.00038356,7]
[322639919,1713153039550,-1505.25,0.00038356,7]
[322639920,1713153039559,-523.2291265,0.00038356,7]
[322639921,1713153039569,-576.97,0.00038356,7]
[322639922,1713153039578,-499.90248137,0.00038356,7]
[322639923,1713153039587,-1314.06,0.00038356,7]
[322639924,1713153039596,-500.0,0.00038356,7]
[322639925,1713153039605,-500.0,0.00038356,7]
[322639926,1713153039614,-500.0,0.00038356,7]
[322639927,1713153039626,-500.0,0.00038356,7]
[322639928,1713153039635,-4287.02,0.00038356,7]
[322639929,1713153039644,-500.0,0.00038356,7]
[322639930,1713153039655,-500.0,0.00038356,7]
[322639931,1713153039665,-523.52,0.00038356,7]
[322639932,1713153039674,-500.0,0.00038356,10]
[322639933,1713153039683,-500.0,0.00038356,10]
[322639934,1713153039692,-500.0,0.00038356,10]
[322639935,1713153039701,-500.0,0.00038356,10]
[322639936,1713153039710,-500.0,0.00038356,10]
[322639937,1713153039719,-500.0,0.00038356,7]
[322639938,1713153039729,-176.22142461,0.00038356,7]
[322639939,1713153039737,-500.0,0.00038356,7]
[322639940,1713153039747,-500.0,0.00038356,7]
[322639941,1713153039756,-595.64,0.00038356,7]
[322639942,1713153039765,-500.0,0.00038356,7]
[322639943,1713153039774,-6317.74,0.00038356,7]
[322639944,1713153039783,-500.0,0.00038356,7]
[322639945,1713153039792,-594.37,0.00038356,7]
[322639946,1713153039801,-858.71,0.00038356,7]
[322639947,1713153039810,-500.0,0.00038356,7]
[322639948,1713153039819,-19792.56,0.00038356,7]
[322639949,1713153039828,-501.10597998,0.00038356,7]
[322639950,1713153039838,-2133.5,0.00038356,7]
[322639951,1713153039847,-16243.66,0.00038356,7]
[322639952,1713153039855,-186.82321834,0.00038356,7]
[322639953,1713153039864,-714.09,0.00038356,7]
[322639954,1713153039878,-500.0,0.00038356,7]
[322639955,1713153039887,-500.0,0.00038356,7]
[322639956,1713153039896,-500.0,0.00038356,7]
[322639957,1713153039905,-1496.62,0.00038356,7]
[322639958,1713153039915,-500.0,0.00038356,7]
[322639959,1713153039923,-594.34,0.00038356,7]
[322639960,1713153039932,-1101.67,0.00038356,7]
[322639961,1713153040059,-3490.47,0.00038356,7]
[322639962,1713153040069,-2147.29,0.00038356,7]
[322639963,1713153040078,-500.0,0.00038356,7]
[322639964,1713153040087,-500.0,0.00038356,7]
[322639965,1713153040097,-2731.4,0.00038356,7]
[322639966,1713153040106,-508.79,0.00038356,7]
[322639967,1713153040119,-568.78119514,0.00038356,7]
[322639968,1713153040130,-500.0,0.00038356,7]
[322639969,1713153040141,-500.0,0.00038356,7]
[322639970,1713153040150,-156.02629324,0.00038356,7]
[322639971,1713153040161,-500.0,0.00038356,7]
[322639972,1713153040171,-516.07468781,0.00038356,7]
[322639973,1713153040180,-628.27,0.00038356,7]
[322639974,1713153040190,-507.70241539,0.00038356,7]
[322639975,1713153040199,-500.0,0.00038356,7]
[322639976,1713153040208,-500.0,0.00038356,7]
[322639977,1713153040217,-1771.55,0.00038356,7]
[322639978,1713153040227,-500.0,0.00038356,7]
[322639979,1713153040236,-500.0,0.00038356,7]
[322639980,1713153040245,-656.03,0.00038356,7]
[322639981,1713153040254,-500.0,0.00038356,7]
[322639982,1713153040263,-500.0,0.00038356,7]
[322639983,1713153040272,-536.28,0.00038356,7]
[322639984,1713153040282,-4702.44,0.00038356,7]
[322639985,1713153040292,-576.58894019,0.00038356,7]
[322639986,1713153040301,-250.04663333,0.00038356,7]
[322639987,1713153040310,-500.0,0.00038356,7]
[322639988,1713153040319,-500.0,0.00038356,7]
[322639989,1713153040329,-2266.81,0.00038356,7]
[322639990,1713153040337,-2600.92,0.00038356,7]
[322639991,1713153040347,-500.0,0.00038356,7]
[322639992,1713153040356,-1032.57,0.00038356,7]
[322639993,1713153040365,-500.0,0.00038356,7]
[322639995,1713153040376,-500.0,0.00038356,7]
[322639997,1713153040385,-500.0,0.00038356,7]
[322639998,1713153040394,-43622.41,0.00038356,7]
[322640000,1713153040403,-971.51,0.00038356,7]
[322640001,1713153040412,-500.0,0.00038356,7]
[322640002,1713153040421,-1993.06,0.00038356,7]
[322640003,1713153040430,-500.0,0.00038356,7]
[322640004,1713153040440,-500.0,0.00038356,7]
[322640005,1713153040449,-1000.0,0.00038356,2]
[322640006,1713153040458,-4199.41,0.00038356,7]
[322640007,1713153040468,-767.72,0.00038356,7]
[322640008,1713153040478,-500.0,0.00038356,7]
[322640009,1713153040489,-603.71100054,0.00038356,7]
[322640010,1713153040498,-508.3178126,0.00038356,7]
[322640011,1713153040507,-500.0,0.00038356,7]
[322640012,1713153040516,-500.0,0.00038356,7]
[322640013,1713153040525,-2684.69,0.00038356,7]
[322640014,1713153040535,-2186.5,0.00038356,7]
[322640015,1713153040544,-500.0,0.00038356,7]
[322640016,1713153040553,-880.58,0.00038356,7]
[322640017,1713153040564,-697.51,0.00038356,7]
[322640018,1713153040573,-501.80085222,0.00038356,7]
[322640019,1713153040582,-726.65,0.00038356,7]
[322640020,1713153040591,-8969.63,0.00038356,7]
[322640021,1713153040600,-2133.62,0.00038356,7]
[322640022,1713153040609,-494.28968635,0.00038356,7]
[322640023,1713153040620,-500.0,0.00038356,7]
[322640024,1713153040628,-7468.78,0.00038356,7]
[322640025,1713153040637,-2434.79,0.00038356,7]
[322640026,1713153040646,-504.2052794,0.00038356,7]
[322640027,1713153040655,-2222.58,0.00038356,7]
[322640028,1713153040664,-630.04,0.00038356,7]
[322640029,1713153040673,-500.0,0.00038356,7]
[322640030,1713153040683,-500.0,0.00038356,7]
[322640031,1713153040692,-617.18275615,0.00038356,7]
[322640032,1713153040702,-294.33515522,0.00038393,2]
[322640033,1713153040711,-500.0,0.00038409,2]
[322640034,1713153040720,-294.33515522,0.00038462,2]
[322640035,1713153040729,-500.0,0.00038464,2]
[322640036,1713153040738,-167.13849966,0.00038491,2]
[322640037,1713153040747,-294.33515522,0.0003853,2]
[322640038,1713153040756,-2713.71954726,0.0003853,2]
[322640039,1713153040766,-13624.77573647,0.000386,15]
[322640040,1713153040776,-500.0,0.00038621,10]
[322640041,1713153040786,-500.0,0.00038629,10]
[322640042,1713153040795,-500.0,0.00038629,10]
[322640043,1713153040804,-500.0,0.00038629,10]
[322640044,1713153040813,-500.0,0.00038629,10]
[322640045,1713153040822,-500.0,0.00038629,10]
[322640046,1713153040831,-217.24,0.00038629,2]
[322640047,1713153040840,-22661.7498,0.00038629,30]
[322640048,1713153040849,-500.0,0.0003863,7]
[322640049,1713153040858,-500.0,0.0003863,7]
[322640050,1713153040869,-1415.85,0.0003863,7]
[322640051,1713153040878,-317.75840675,0.0003863,7]
[322640052,1713153040887,-500.0,0.0003863,7]
[322640053,1713153040896,-1703.83,0.0003863,7]
[322640054,1713153040906,-500.0,0.0003863,7]
[322640055,1713153040915,-172.04627777,0.0003863,7]
[322640056,1713153040924,-500.0,0.0003863,7]
[322640057,1713153040933,-500.92534821,0.0003863,7]
[322640058,1713153040942,-539.48,0.0003863,7]
[322640059,1713153040951,-500.0,0.0003863,7]
[322640060,1713153040960,-500.0,0.0003863,7]
[322640061,1713153040971,-500.0,0.0003863,7]
[322640062,1713153040980,-500.0,0.0003863,7]
[322640063,1713153040989,-500.0,0.0003863,7]
[322640064,1713153040999,-489.64851524,0.0003863,7]
[322640065,1713153041008,-501.3291871,0.0003863,7]
[322640066,1713153041017,-501.20342127,0.0003863,7]
[322640067,1713153041027,-500.0,0.0003863,7]
[322640068,1713153041036,-266.95666925,0.0003863,7]
[322640069,1713153041045,-500.0,0.0003863,7]
[322640070,1713153041054,-506.9009558,0.0003863,7]
[322640071,1713153041063,-1441.55,0.0003863,7]
[322640072,1713153041072,-500.0,0.0003863,7]
[322640073,1713153041081,-506.27598173,0.0003863,7]
[322640074,1713153041090,-501.78586582,0.0003863,7]
[322640075,1713153041099,-500.0,0.0003863,7]
[322640076,1713153041108,-500.0,0.0003863,7]
[322640077,1713153041117,-500.0,0.0003863,7]
[322640078,1713153041127,-805.07,0.0003863,7]
[322640079,1713153041136,-511.65020668,0.0003863,7]
[322640080,1713153041145,-504.09352545,0.0003863,7]
[322640081,1713153041154,-274.05696926,0.0003863,7]
[322640082,1713153041163,-500.0,0.0003863,7]
[322640083,1713153041173,-546.26,0.0003863,7]
[322640084,1713153041182,-508.20047574,0.0003863,7]
[322640085,1713153041191,-500.0,0.0003863,7]
[322640086,1713153041200,-500.0,0.0003863,7]
[322640087,1713153041209,-532.76585092,0.0003863,7]
[322640088,1713153041218,-500.0,0.0003863,7]
[322640089,1713153041227,-500.0,0.0003863,7]
[322640090,1713153041236,-500.0,0.0003863,7]
[322640091,1713153041245,-500.0,0.0003863,7]
[322640092,1713153041254,-500.0,0.0003863,7]
[322640093,1713153041263,-500.0,0.0003863,7]
[322640094,1713153041272,-486.97417701,0.0003863,7]
[322640095,1713153041281,-500.0,0.0003863,7]
[322640096,1713153041291,-500.0,0.0003863,7]
[322640097,1713153041300,-507.53349252,0.0003863,7]
[322640098,1713153041309,-6361.05,0.0003863,7]
[322640099,1713153041318,-500.0,0.0003863,7]
[322640100,1713153041327,-238.30768074,0.0003863,7]
[322640101,1713153041336,-500.0,0.0003863,7]
[322640102,1713153041345,-500.0,0.0003863,7]
[322640103,1713153041354,-539.56676316,0.0003863,7]
[322640104,1713153041363,-500.0,0.0003863,7]
[322640105,1713153041373,-271.31030546,0.0003863,7]
[322640106,1713153041382,-500.0,0.0003863,7]
[322640107,1713153041391,-500.0,0.0003863,7]
[322640108,1713153041399,-500.0,0.0003863,7]
[322640109,1713153041408,-686.11,0.0003863,7]
[322640110,1713153041417,-500.0,0.0003863,7]
[322640111,1713153041426,-504.2336834,0.0003863,7]
[322640112,1713153041435,-219.32161877,0.0003863,7]
[322640113,1713153041444,-500.0,0.0003863,7]
[322640114,1713153041453,-526.36475626,0.0003863,7]
[322640115,1713153041462,-501.35581257,0.0003863,7]
[322640116,1713153041471,-645.72,0.0003863,7]
[322640117,1713153041481,-500.0,0.0003863,7]
[322640118,1713153041492,-1505.25,0.0003863,7]
[322640119,1713153041501,-576.97,0.0003863,7]
[322640120,1713153041510,-199.999999,0.0003863,2]
[322640121,1713153041519,-1314.06,0.0003863,7]
[322640122,1713153041529,-500.0,0.0003863,7]
[322640123,1713153041539,-500.0,0.0003863,7]
[322640124,1713153041548,-500.0,0.0003863,7]
[322640125,1713153041557,-4287.02,0.0003863,7]
[322640126,1713153041566,-500.0,0.0003863,7]
[322640127,1713153041575,-523.52,0.0003863,7]
[322640128,1713153041585,-516.86213252,0.0003863,7]
[322640129,1713153041594,-500.0,0.0003863,7]
[322640130,1713153041604,-500.0,0.0003863,7]
[322640131,1713153041613,-595.64,0.0003863,7]
[322640132,1713153041623,-500.0,0.0003863,7]
[322640133,1713153041632,-6317.74,0.0003863,7]
[322640134,1713153041642,-500.56103648,0.0003863,7]
[322640135,1713153041651,-594.37,0.0003863,7]
[322640136,1713153041661,-858.71,0.0003863,7]
[322640137,1713153041670,-151.0,0.0003863,2]
[322640138,1713153041680,-500.0,0.0003863,7]
[322640139,1713153041689,-19792.56,0.0003863,7]
[322640140,1713153041699,-151.0,0.0003863,2]
[322640141,1713153041708,-2133.5,0.0003863,7]
[322640142,1713153041717,-16243.66,0.0003863,7]
[322640143,1713153041727,-714.09,0.0003863,7]
[322640144,1713153041736,-500.0,0.0003863,7]
[322640145,1713153041745,-150.68989415,0.0003863,7]
[322640146,1713153041755,-500.0,0.0003863,7]
[322640147,1713153041765,-1496.62,0.0003863,7]
[322640148,1713153041774,-151.0,0.0003863,2]
[322640149,1713153041784,-500.0,0.0003863,7]
[322640150,1713153041793,-594.34,0.0003863,7]
[322640151,1713153041802,-1101.67,0.0003863,7]
[322640152,1713153041811,-3490.47,0.0003863,7]
[322640153,1713153041821,-2147.29,0.0003863,7]
[322640154,1713153041830,-500.0,0.0003863,7]
[322640155,1713153041840,-500.0,0.0003863,7]
[322640156,1713153041849,-2731.4,0.0003863,7]
[322640157,1713153041859,-508.79,0.0003863,7]
[322640158,1713153041869,-500.0,0.0003863,7]
[322640159,1713153041878,-500.0,0.0003863,7]
[322640160,1713153041887,-500.0,0.0003863,7]
[322640161,1713153041896,-628.27,0.0003863,7]
[322640162,1713153041905,-500.0,0.0003863,7]
[322640163,1713153041915,-153.146144,0.0003863,2]
[322640164,1713153041924,-500.0,0.0003863,7]
[322640165,1713153041933,-1771.55,0.0003863,7]
[322640166,1713153041942,-500.0,0.0003863,7]
[322640167,1713153041952,-500.0,0.0003863,7]
[322640168,1713153041963,-656.03,0.0003863,7]
[322640169,1713153041973,-500.0,0.0003863,7]
[322640170,1713153041984,-500.0,0.0003863,7]
[322640171,1713153041995,-536.28,0.0003863,7]
[322640172,1713153042006,-4702.44,0.0003863,7]
[322640173,1713153042016,-500.0,0.0003863,7]
[322640174,1713153042026,-2266.81,0.0003863,7]
[322640175,1713153042037,-2600.92,0.0003863,7]
[322640176,1713153042046,-264.66913962,0.0003863,7]
[322640177,1713153042055,-1032.57,0.0003863,7]
[322640178,1713153042065,-500.0,0.0003863,7]
[322640179,1713153042075,-500.0,0.0003863,7]
[322640180,1713153042084,-500.0,0.0003863,7]
[322640181,1713153042093,-43622.41,0.0003863,7]
[322640182,1713153042103,-971.51,0.0003863,7]
[322640183,1713153042113,-1993.06,0.0003863,7]
[322640184,1713153042125,-500.0,0.0003863,7]
[322640185,1713153042136,-500.0,0.0003863,7]
[322640186,1713153042146,-500.0,0.0003863,7]
[322640187,1713153042155,-500.43354895,0.0003863,2]
[322640188,1713153042164,-4199.41,0.0003863,7]
[322640189,1713153042175,-767.72,0.0003863,7]
[322640190,1713153042184,-500.0,0.0003863,7]
[322640191,1713153042193,-151.0,0.0003863,2]
[322640192,1713153042202,-500.0,0.0003863,7]
[322640193,1713153042212,-151.0,0.0003863,2]
[322640194,1713153042220,-500.0,0.0003863,7]
[322640195,1713153042229,-2684.69,0.0003863,7]
[322640196,1713153042238,-2186.5,0.0003863,7]
[322640197,1713153042246,-153.285422,0.0003863,2]
[322640198,1713153042255,-151.0,0.0003863,2]
[322640199,1713153042264,-297.37751718,0.0003863,7]
[322640231,1713153060255,167.966386,0.00027397,2]
[322640232,1713153060451,167.966386,0.00033165,2]
[322640239,1713154043123,-169.418645,0.00027397,2]
[322640240,1713154043143,-385.12383826,0.00033165,4]
[322640241,1713154043163,-337.47352438,0.00034555,10]
[322640242,1713154043182,-547.39653327,0.0003653,2]
[322640243,1713154043201,-380.0,0.00037147,2]
[322640244,1713154043221,-156.21601891,0.000379,2]
[322640245,1713154043241,-260.0,0.00038,4]
[322640246,1713154043263,-230.00000099,0.00038,2]
[322640247,1713154043283,-52.87222311,0.00038005,2]
[322640248,1713154171237,169.304454,0.00027397,2]
[322640294,1713154232289,-154.78330338,0.00035899,7]
[322640295,1713154232298,-364.93102218,0.000359,2]
[322640296,1713154232307,-310.33426683,0.00038,2]
[322640297,1713154232316,-3000.0,0.000381,4]
[322640299,1713154232326,-167.13849966,0.00038243,2]
[322640300,1713154232335,-468.55002659,0.00038255,8]
[322640302,1713154232344,-2000.0,0.00038256,2]
[322640304,1713154232353,-176.60109314,0.00038256,2]
[322640305,1713154232363,-176.60109313,0.00038325,2]
[322640306,1713154232374,-400.0,0.00038353,3]
[322640307,1713154232396,-211.29871297,0.00038354,4]
[322640308,1713154232419,-155.58083407,0.00038354,4]
[322640309,1713154232440,-155.00800103,0.00038354,4]
[322640310,1713154232463,-648.37724803,0.00038354,4]
[322640311,1713154232486,-1704.67236751,0.00038354,4]
[322640312,1713154232509,-155.8677637,0.00038354,4]
[322640313,1713154232533,-610.92864816,0.00038354,4]
[322640314,1713154232556,-2630.50063572,0.00038354,4]
[322640315,1713154232580,-272.56987724,0.00038355,4]
[322640316,1713154232591,-47617.4752536,0.00038355,4]
[322640317,1713154232602,-500.0,0.00038355,2]
[322640318,1713154232612,-3450.46715212,0.00038356,5]
[322640319,1713154232623,-500.0,0.00038356,7]
[322640320,1713154232633,-377.37248519,0.00038356,7]
[322640321,1713154232644,-1381.48,0.00038356,7]
[322640322,1713154232654,-501.74231621,0.00038356,7]
[322640323,1713154232666,-500.0,0.00038356,7]
[322640324,1713154232674,-501.78586582,0.00038356,7]
[322640325,1713154232684,-511.52574006,0.00038356,7]
[322640326,1713154232693,-504.09352545,0.00038356,7]
[322640327,1713154232703,-771.52,0.00038356,7]
[322640328,1713154232713,-523.5,0.00038356,7]
[322640329,1713154232722,-500.0,0.00038356,7]
[322640330,1713154232731,-500.0,0.00038356,7]
[322640331,1713154232741,-500.0,0.00038356,7]
[322640332,1713154232751,-500.0,0.00038356,7]
[322640333,1713154232761,-500.0,0.00038356,7]
[322640334,1713154232772,-500.0,0.00038356,7]
[322640335,1713154232782,-510.18256376,0.00038356,7]
[322640336,1713154232791,-500.0,0.00038356,7]
[322640337,1713154232800,-507.53349252,0.00038356,7]
[322640338,1713154232810,-500.0,0.00038356,7]
[322640339,1713154232820,-500.0,0.00038356,7]
[322640340,1713154232831,-271.31030546,0.00038356,7]
[322640341,1713154232842,-500.0,0.00038356,7]
[322640342,1713154232854,-500.0,0.00038356,7]
[322640343,1713154232870,-500.0,0.00038356,7]
[322640344,1713154232880,-630.04,0.00038356,7]
[322640345,1713154232890,-657.52,0.00038356,7]
[322640346,1713154232902,-500.6998944,0.00038356,2]
[322640347,1713154232917,-500.0,0.00038356,7]
[322640348,1713154232927,-517.0,0.00038356,7]
[322640349,1713154232938,-500.0,0.00038356,7]
[322640350,1713154232949,-500.0,0.00038356,7]
[322640351,1713154232958,-500.0,0.00038356,7]
[322640352,1713154232968,-500.0,0.00038356,7]
[322640353,1713154232978,-500.0,0.00038356,7]
[322640354,1713154232988,-500.0,0.00038356,7]
[322640355,1713154232998,-500.0,0.00038356,7]
[322640356,1713154233007,-523.2291265,0.00038356,7]
[322640357,1713154233017,-500.0,0.00038356,7]
[322640358,1713154233026,-500.0,0.00038356,7]
[322640359,1713154233036,-500.0,0.00038356,7]
[322640360,1713154233045,-500.0,0.00038356,7]
[322640361,1713154233054,-266.95666925,0.00038356,7]
[322640362,1713154233064,-500.0,0.00038356,7]
[322640363,1713154233073,-500.0,0.00038356,7]
[322640364,1713154233084,-500.0,0.00038356,7]
[322640365,1713154233094,-500.0,0.00038356,7]
[322640366,1713154233103,-500.0,0.00038356,7]
[322640367,1713154233113,-500.0,0.00038356,7]
[322640368,1713154233123,-500.0,0.00038356,7]
[322640369,1713154233134,-500.0,0.00038356,7]
[322640370,1713154233144,-500.0,0.00038356,7]
[322640371,1713154233154,-506.27598173,0.00038356,7]
[322640372,1713154233168,-500.0,0.00038356,7]
[322640373,1713154233178,-274.05696926,0.00038356,7]
[322640374,1713154233188,-504.56929426,0.00038356,7]
[322640375,1713154233199,-507.70241539,0.00038356,7]
[322640376,1713154233210,-501.24738634,0.00038356,7]
[322640377,1713154233220,-500.0,0.00038356,7]
[322640378,1713154233230,-508.20047574,0.00038356,7]
[322640379,1713154233240,-905.53,0.00038356,7]
[322640380,1713154233249,-156.02629324,0.00038356,7]
[322640381,1713154233258,-516.07468781,0.00038356,7]
[322640382,1713154233266,-1000.0,0.00038356,2]
[322640383,1713154233275,-99.30155717,0.00038356,7]
[322640407,1713154238229,-400.69844283,0.00038356,7]
[322640408,1713154238240,-500.0,0.00038356,7]
[322640409,1713154238250,-501.80085222,0.00038356,7]
[322640410,1713154238259,-500.0,0.00038356,7]
[322640411,1713154238268,-726.65,0.00038356,7]
[322640412,1713154238277,-504.2052794,0.00038356,7]
[322640413,1713154238287,-500.0,0.00038356,7]
[322640414,1713154238296,-500.0,0.00038356,7]
[322640415,1713154238304,-500.0,0.00038356,7]
[322640416,1713154238313,-500.0,0.00038356,7]
[322640417,1713154238323,-500.0,0.00038356,7]
[322640418,1713154238331,-500.0,0.00038356,7]
[322640420,1713154238341,-500.0,0.00038356,7]
[322640422,1713154238350,-548.59923297,0.00038356,7]
[322640424,1713154238358,-500.0,0.00038356,7]
[322640426,1713154238367,-500.0,0.00038356,7]
[322640428,1713154238376,-6361.05,0.00038356,7]
[322640430,1713154238384,-617.18275615,0.00038356,7]
[322640431,1713154238393,-7468.78,0.00038356,7]
[322640433,1713154238402,-500.0,0.00038356,7]
[322640435,1713154238413,-516.21569809,0.00038356,7]
[322640437,1713154238422,-2222.58,0.00038356,7]
[322640439,1713154238431,-317.75840675,0.00038356,7]
[322640441,1713154238440,-500.0,0.00038356,7]
[322640443,1713154238449,-500.0,0.00038356,7]
[322640445,1713154238457,-500.0,0.00038356,7]
[322640446,1713154238467,-501.88530257,0.00038356,7]
[322640447,1713154238476,-500.0,0.00038356,7]
[322640449,1713154238486,-500.0,0.00038356,7]
[322640450,1713154238495,-576.97,0.00038356,7]
[322640451,1713154238504,-645.72,0.00038356,7]
[322640452,1713154238513,-500.0,0.00038356,7]
[322640453,1713154238522,-1418.53,0.00038356,7]
[322640454,1713154238531,-500.68032662,0.00038356,7]
[322640455,1713154238540,-500.0,0.00038356,7]
[322640456,1713154238549,-500.0,0.00038356,7]
[322640457,1713154238558,-500.0,0.00038356,7]
[322640458,1713154238568,-500.0,0.00038356,7]
[322640459,1713154238577,-1505.25,0.00038356,7]
[322640460,1713154238586,-500.0,0.00038356,7]
[322640461,1713154238595,-1496.62,0.00038356,7]
[322640462,1713154238604,-500.0,0.00038356,7]
[322640463,1713154238614,-500.0,0.00038356,7]
[322640464,1713154238623,-500.0,0.00038356,7]
[322640465,1713154238632,-3490.47,0.00038356,7]
[322640466,1713154238642,-499.90248137,0.00038356,7]
[322640467,1713154238651,-511.04,0.00038356,7]
[322640468,1713154238661,-858.71,0.00038356,7]
[322640469,1713154238671,-500.0,0.00038356,7]
[322640470,1713154238680,-545.31,0.00038356,7]
[322640471,1713154238689,-501.10597998,0.00038356,7]
[322640472,1713154238698,-714.09,0.00038356,7]
[322640473,1713154238707,-16243.66,0.00038356,7]
[322640474,1713154238716,-500.0,0.00038356,7]
[322640475,1713154238725,-500.0,0.00038356,7]
[322640476,1713154238734,-500.0,0.00038356,7]
[322640477,1713154238743,-500.0,0.00038356,7]
[322640478,1713154238752,-1632.83,0.00038356,7]
[322640479,1713154238761,-19792.56,0.00038356,7]
[322640480,1713154238772,-500.0,0.00038356,7]
[322640481,1713154238782,-500.0,0.00038356,7]
[322640482,1713154238794,-500.0,0.00038356,7]
[322640483,1713154238804,-176.22142461,0.00038356,7]
[322640484,1713154238813,-6317.74,0.00038356,7]
[322640485,1713154238822,-500.0,0.00038356,7]
[322640486,1713154238833,-4702.44,0.00038356,7]
[322640487,1713154238842,-43622.41,0.00038356,7]
[322640488,1713154238851,-186.82321834,0.00038356,7]
[322640489,1713154238861,-500.0,0.00038356,7]
[322640490,1713154238872,-4199.41,0.00038356,7]
[322640491,1713154238881,-500.0,0.00038356,7]
[322640492,1713154238890,-576.58894019,0.00038356,7]
[322640493,1713154238899,-2133.5,0.00038356,7]
[322640494,1713154238910,-2600.92,0.00038356,7]
[322640495,1713154238922,-172.04627777,0.00038356,7]
[322640496,1713154238932,-500.0,0.00038356,7]
[322640497,1713154238942,-500.0,0.00038356,7]
[322640498,1713154238953,-1032.57,0.00038356,7]
[322640499,1713154238962,-500.0,0.00038356,7]
[322640500,1713154238971,-603.71100054,0.00038356,7]
[322640501,1713154238980,-594.34,0.00038356,7]
[322640502,1713154238990,-971.51,0.00038356,7]
[322640503,1713154239000,-508.79,0.00038356,7]
[322640504,1713154239010,-8969.63,0.00038356,7]
[322640505,1713154239019,-500.0,0.00038356,7]
[322640506,1713154239028,-2147.29,0.00038356,7]
[322640507,1713154239038,-1993.06,0.00038356,7]
[322640508,1713154239047,-500.0,0.00038356,7]
[322640509,1713154239057,-568.78119514,0.00038356,7]
[322640510,1713154239065,-500.0,0.00038356,7]
[322640511,1713154239075,-2731.4,0.00038356,7]
[322640512,1713154239085,-2434.79,0.00038356,7]
[322640513,1713154239095,-500.0,0.00038356,7]
[322640514,1713154239105,-2186.5,0.00038356,7]